fUST/lending_fUST_20250625
["ID","MTS","AMOUNT","RATE_DAILY","PERIOD"]
[367484817,1750818640813,-460.0,0.00020818,2]
[367484819,1750818640825,-460.0,0.00020818,2]
[367484821,1750818640838,-484.05,0.00020818,2]
[367484823,1750818640850,-460.0,0.00020819,2]
[367484826,1750818640862,-460.0,0.00020819,2]
[367484828,1750818640872,-460.0,0.00020819,2]
[367484830,1750818640883,-460.0,0.00020819,2]
[367484832,1750818640894,-500.0,0.00020821,15]
[367484834,1750818640904,-4271.09595683,0.00020831,4]
[367484836,1750818640915,-1007.0,0.00020845,2]
[367484838,1750818640926,-1007.0,0.00020865,2]
[367484840,1750818640936,-308.8922713,0.00020941,2]
[367484842,1750818640947,-100000.0,0.0002099,2]
[367484844,1750818640959,-163.0,0.00021,4]
[367484846,1750818640969,-163.0,0.00021,4]
[367484849,1750818640981,-163.0,0.00021,4]
[367484851,1750818640991,-163.0,0.00021,4]
[367484853,1750818641004,-163.0,0.00021,3]
[367484855,1750818641016,-163.0,0.00021,3]
[367484857,1750818641027,-163.0,0.00021,3]
[367484860,1750818641041,-163.0,0.00021,3]
[367484862,1750818641053,-163.0,0.00021,3]
[367484864,1750818641066,-163.0,0.00021,3]
[367484866,1750818641077,-163.0,0.00021,2]
[367484868,1750818641087,-163.0,0.00021,2]
[367484870,1750818641098,-163.0,0.00021,2]
[367484872,1750818641109,-163.0,0.00021,2]
[367484874,1750818641120,-163.0,0.00021,2]
[367484876,1750818641130,-163.0,0.00021,2]
[367484878,1750818641140,-163.0,0.00021,2]
[367484880,1750818641151,-163.0,0.00021,2]
[367484882,1750818641161,-163.0,0.00021,5]
[367484884,1750818641172,-163.0,0.00021,5]
[367484886,1750818641183,-163.0,0.00021,5]
[367484888,1750818641195,-160.0,0.00021,2]
[367484890,1750818641206,-4271.09595683,0.00021072,4]
[367484892,1750818641217,-2048.65,0.00021074,2]
[367484894,1750818641232,-494.49,0.00021091,2]
[367484895,1750818641245,-460.0,0.00021092,2]
[367484896,1750818641257,-556.84,0.00021092,2]
[367484897,1750818641269,-460.0,0.00021092,2]
[367484899,1750818641279,-289.34294726,0.00021092,2]
[367484901,1750818641291,-484.05,0.00021092,2]
[367484904,1750818641304,-460.0,0.00021093,2]
[367484906,1750818641317,-460.0,0.00021093,2]
[367484908,1750818641329,-291.41157096,0.00021093,2]
[367484910,1750818641341,-460.0,0.00021093,2]
[367484912,1750818641353,-500.0,0.00021095,16]
[367484914,1750818641364,-159.57186209,0.00021128,2]
[367484916,1750818641375,-587.0,0.00021202,2]
[367484918,1750818641387,-587.0,0.00021203,2]
[367484921,1750818641398,-1118.0,0.00021258,2]
[367484923,1750818641408,-4271.09595683,0.00021314,5]
[367484924,1750818641419,-494.49,0.00021365,2]
[367484925,1750818641430,-460.0,0.00021366,2]
[367484926,1750818641441,-556.84,0.00021366,2]
[367484927,1750818641453,-460.0,0.00021366,2]
[367484928,1750818641463,-484.05,0.00021366,2]
[367484929,1750818641473,-298.0922475,0.00021367,2]
[367484930,1750818641485,-460.0,0.00021367,2]
[367484931,1750818641497,-460.0,0.00021367,2]
[367484932,1750818641507,-500.0,0.00021369,17]
[367484933,1750818641518,-215.0738,0.00021456,2]
[367484934,1750818641528,-4271.09595683,0.00021555,5]
[367484935,1750818641540,-1544.605085,0.0002156,4]
[367484936,1750818641551,-494.49,0.00021639,2]
[367484937,1750818641562,-302.1898521,0.0002164,2]
[367484938,1750818641572,-556.84,0.0002164,2]
[367484939,1750818641583,-200.0,0.0002164,3]
[367484940,1750818641594,-460.0,0.0002164,2]
[367484941,1750818641605,-484.05,0.0002164,2]
[367484942,1750818641616,-460.0,0.00021641,2]
[367484943,1750818641626,-460.0,0.00021641,2]
[367484944,1750818641636,-500.0,0.00021643,18]
[367484945,1750818641647,-332.16579385,0.00021644,2]
[367484946,1750818641658,-332.16579385,0.00021726,2]
[367484947,1750818641668,-6484.48,0.00021788,2]
[367484948,1750818641683,-4271.09595683,0.00021797,6]
[367484949,1750818641694,-6338.89,0.000218,2]
[367484950,1750818641705,-12000.0,0.00021826,2]
[367484951,1750818641715,-332.16579385,0.00021836,2]
[367484952,1750818641726,-18000.0,0.00021842,2]
[367484953,1750818641737,-1000.0,0.0002185,5]
[367484954,1750818641748,-352.63793751,0.00021873,3]
[367484955,1750818641759,-153.71839,0.00021899,5]
[367484956,1750818641770,-18244.762,0.000219,2]
[367484957,1750818641780,-300.74,0.000219,6]
[367484958,1750818641792,-13186.03557868,0.000219,2]
[367484959,1750818641802,-494.49,0.00021913,2]
[367484960,1750818641813,-556.84,0.00021914,2]
[367484961,1750818641823,-460.0,0.00021914,2]
[367484962,1750818641832,-484.05,0.00021914,2]
[367484963,1750818641842,-460.0,0.00021915,2]
[367484964,1750818641851,-460.0,0.00021915,2]
[367484965,1750818642043,-500.0,0.00021917,19]
[367484966,1750818642055,-201.96930778,0.00021917,2]
[367484967,1750818642065,-460.0,0.00021917,2]
[367484968,1750818642074,-541.07881641,0.00021917,2]
[367484969,1750818642083,-500.0,0.00021917,2]
[367484970,1750818642092,-500.0,0.00021917,2]
[367484971,1750818642101,-503.82676885,0.00021917,2]
[367484972,1750818642110,-500.0,0.00021917,2]
[367484973,1750818642119,-500.76607002,0.00021917,2]
[367484974,1750818642128,-166.0,0.00021918,2]
[367484975,1750818642138,-301.5438891,0.00021918,3]
[367484976,1750818642147,-401.149339,0.00021918,7]
[367484977,1750818642156,-150.0,0.00021918,2]
[367484978,1750818642165,-332.16579385,0.00021945,2]
[367484979,1750818642174,-500.0,0.00021973,2]
[367484980,1750818642183,-500.0,0.00021973,2]
[367484981,1750818642192,-500.0,0.00021973,2]
[367484982,1750818642202,-500.0,0.00021973,2]
[367484983,1750818642211,-500.0,0.00021973,2]
[367484984,1750818642220,-500.0,0.00021973,2]
[367484985,1750818642229,-500.0,0.00021973,2]
[367484986,1750818642238,-500.0,0.00021973,2]
[367484987,1750818642247,-500.0,0.00021973,2]
[367484988,1750818642256,-500.0,0.00021973,2]
[367484989,1750818642265,-500.56052383,0.00021973,2]
[367484990,1750818642274,-500.0,0.00021973,2]
[367484991,1750818642283,-500.0,0.00021973,2]
[367484992,1750818642292,-500.0,0.00021973,2]
[367484993,1750818642302,-500.0,0.00021973,2]
[367484994,1750818642311,-500.0,0.00021973,2]
[367484995,1750818642320,-501.98846051,0.00021973,2]
[367484996,1750818642329,-500.0,0.00021973,2]
[367484997,1750818642339,-500.0,0.00021973,2]
[367484998,1750818642347,-500.0,0.00021973,2]
[367484999,1750818642357,-500.0,0.00021973,2]
[367485000,1750818642366,-500.0,0.00021973,2]
[367485001,1750818642375,-500.0,0.00021973,2]
[367485002,1750818642384,-500.0,0.00021973,2]
[367485003,1750818642393,-500.0,0.00021973,2]
[367485004,1750818642403,-500.0,0.00021973,2]
[367485005,1750818642412,-500.0,0.00021973,2]
[367485006,1750818642421,-500.0,0.00021973,2]
[367485007,1750818642431,-500.1998707,0.00021973,2]
[367485008,1750818642440,-600.0,0.00021973,2]
[367485009,1750818642449,-500.0,0.00021973,2]
[367485010,1750818642458,-500.0,0.00021973,2]
[367485011,1750818642468,-500.0,0.00021973,2]
[367485012,1750818642477,-500.0,0.00021973,2]
[367485013,1750818642487,-500.0,0.00021973,2]
[367485014,1750818642496,-500.0,0.00021973,2]
[367485015,1750818642505,-500.0,0.00021973,2]
[367485016,1750818642514,-500.0,0.00021973,2]
[367485017,1750818642523,-500.0,0.00021973,2]
[367485018,1750818642534,-500.0,0.00021973,2]
[367485019,1750818642543,-500.0,0.00021973,2]
[367485020,1750818642554,-500.0,0.00021973,2]
[367485021,1750818642564,-500.0,0.00021973,2]
[367485022,1750818642574,-500.0,0.00021973,2]
[367485023,1750818642583,-500.0,0.00021973,2]
[367485024,1750818642594,-500.0,0.00021973,2]
[367485025,1750818642604,-500.0,0.00021973,2]
[367485026,1750818642615,-500.0,0.00021973,2]
[367485027,1750818642626,-500.0,0.00021973,2]
[367485028,1750818642635,-500.0,0.00021973,2]
[367485029,1750818642644,-500.0,0.00021973,2]
[367485030,1750818642653,-500.74666282,0.00021973,2]
[367485031,1750818642662,-500.0,0.00021973,2]
[367485032,1750818642672,-500.0,0.00021973,2]
[367485033,1750818642685,-507.06280126,0.00021973,2]
[367485034,1750818642694,-500.0,0.00021973,2]
[367485035,1750818642703,-500.0,0.00021973,2]
[367485036,1750818642713,-68610.49858111,0.00022,2]
[367485037,1750818642724,-16987.13328732,0.00022,2]
[367485038,1750818642733,-157322.6589517,0.00022,2]
[367485039,1750818642743,-9844.33039481,0.00022,2]
[367485040,1750818642754,-102188.47422111,0.00022,2]
[367485041,1750818642772,-1013.67909539,0.00022,2]
[367485042,1750818642783,-900.76597317,0.00022,2]
[367485043,1750818642800,-364.52002253,0.00022,2]
[367485044,1750818642817,-444.28628517,0.00018747,2]
[367485045,1750818642826,-589.29904854,0.00022,2]
[367485052,1750818643777,-266.18676446,0.00018986,2]
[367485055,1750818643833,-178.09952071,0.00018986,2]
[367485056,1750818643842,-444.28628517,0.00019266,2]
[367485057,1750818643851,-131.51074697,0.00019496,2]
[367485058,1750818643887,-262.248948,0.00019496,2]
[367485064,1750818646861,-50.5265902,0.00019496,2]
[367485065,1750818646872,-444.28628517,0.00019782,2]
[367485066,1750818646881,-154.14712463,0.00020131,2]
[367485067,1750818646893,-290.13916054,0.00020131,2]
[367485068,1750818646902,-444.28628517,0.00020283,2]
[367485069,1750818646912,-2200.0,0.00020665,2]
[367485070,1750818646921,-444.28628517,0.00020734,2]
[367485071,1750818646931,-444.28628517,0.00021087,2]
[367485072,1750818646946,-444.28628517,0.00021349,2]
[367485073,1750818646955,-444.28628517,0.00021462,2]
[367485074,1750818646964,-444.28628518,0.00021788,2]
[367485075,1750818646974,-33994.39728022,0.00022,2]
[367485076,1750818811406,5250.0,0.000161,2]
[367485081,1750818986545,465.19,0.0002575,60]
[367485084,1750819500946,230.898664,0.00013699,2]
[367485086,1750819525614,500.0,0.00023,30]
[367485091,1750819832038,-5168.17569466,0.00016852,2]
[367485092,1750819832049,-1200.0,0.00016941,2]
[367485093,1750819832058,-949.07,0.00016942,3]
[367485094,1750819832067,-474.53,0.00016942,3]
[367485095,1750819832077,-237.27,0.00016942,3]
[367485096,1750819832086,-711.81,0.00016942,3]
[367485097,1750819832096,-300.0,0.00016948,2]
[367485098,1750819832106,-300.0,0.00016949,2]
[367485099,1750819832115,-300.0,0.0001695,2]
[367485100,1750819832124,-460.0,0.0001695,2]
[367485101,1750819832134,-460.0,0.0001695,2]
[367485102,1750819832143,-460.0,0.0001695,2]
[367485103,1750819832152,-460.0,0.0001695,2]
[367485104,1750819832162,-460.0,0.0001695,2]
[367485105,1750819832171,-460.0,0.0001695,2]
[367485106,1750819832181,-460.0,0.0001695,2]
[367485107,1750819832191,-1000.0,0.0001695,2]
[367485109,1750819832204,-460.0,0.0001695,2]
[367485111,1750819832214,-460.0,0.0001695,2]
[367485113,1750819832223,-460.0,0.0001695,2]
[367485115,1750819832233,-460.0,0.0001695,2]
[367485117,1750819832243,-460.0,0.0001695,2]
[367485119,1750819832253,-460.0,0.0001695,2]
[367485121,1750819832262,-460.0,0.0001695,2]
[367485123,1750819832272,-468.56121087,0.0001695,2]
[367485125,1750819832282,-460.0,0.0001695,2]
[367485127,1750819832292,-460.0,0.0001695,2]
[367485129,1750819832302,-460.0,0.0001695,2]
[367485131,1750819832311,-460.0,0.0001695,2]
[367485133,1750819832321,-460.0,0.0001695,2]
[367485135,1750819832330,-460.0,0.0001695,2]
[367485136,1750819832339,-1548.65,0.0001695,2]
[367485137,1750819832348,-460.0,0.0001695,2]
[367485139,1750819832357,-1284.68,0.0001695,2]
[367485140,1750819832367,-460.0,0.0001695,2]
[367485141,1750819832377,-460.0,0.0001695,2]
[367485142,1750819832386,-460.0,0.0001695,2]
[367485143,1750819832395,-460.0,0.0001695,2]
[367485144,1750819832404,-460.0,0.0001695,2]
[367485145,1750819832413,-1749.56,0.0001695,2]
[367485146,1750819832423,-1004.1,0.0001695,2]
[367485147,1750819832431,-460.0,0.0001695,2]
[367485148,1750819832441,-460.0,0.0001695,2]
[367485149,1750819832450,-460.0,0.0001695,2]
[367485150,1750819832459,-460.0,0.0001695,2]
[367485151,1750819832468,-460.0,0.0001695,2]
[367485152,1750819832477,-460.0,0.0001695,2]
[367485153,1750819832486,-4092.63387594,0.0001695,2]
[367485154,1750819832510,-14616.15413907,0.0001695,2]
[367485155,1750819832519,-460.0,0.00016951,2]
[367485156,1750819832528,-316.97678333,0.00016951,2]
[367485157,1750819832538,-460.0,0.00016951,2]
[367485158,1750819832548,-460.0,0.00016951,2]
[367485159,1750819832557,-460.0,0.00016951,2]
[367485160,1750819832566,-460.0,0.00016951,2]
[367485161,1750819832575,-460.0,0.00016951,2]
[367485162,1750819832584,-460.0,0.00016951,2]
[367485163,1750819832593,-460.0,0.00016951,2]
[367485164,1750819832603,-460.0,0.00016951,2]
[367485165,1750819832612,-460.0,0.00016951,2]
[367485166,1750819832621,-460.0,0.00016951,2]
[367485167,1750819832630,-460.0,0.00016951,2]
[367485168,1750819832639,-460.0,0.00016951,2]
[367485169,1750819832649,-460.0,0.00016951,2]
[367485170,1750819832659,-460.0,0.00016951,2]
[367485171,1750819832668,-460.0,0.00016951,2]
[367485172,1750819832677,-465.20611654,0.00016951,2]
[367485173,1750819832687,-460.0,0.00016951,2]
[367485174,1750819832696,-460.0,0.00016951,2]
[367485175,1750819832706,-460.0,0.00016951,2]
[367485176,1750819832715,-460.0,0.00016951,2]
[367485177,1750819832724,-460.0,0.00016951,2]
[367485178,1750819832733,-460.0,0.00016951,2]
[367485179,1750819832743,-460.0,0.00016951,2]
[367485180,1750819832752,-460.0,0.00016951,2]
[367485181,1750819832763,-460.0,0.00016951,2]
[367485182,1750819832775,-460.0,0.00016951,2]
[367485183,1750819832787,-460.0,0.00016951,2]
[367485184,1750819832797,-460.0,0.00016951,2]
[367485185,1750819832807,-324.02743825,0.00016951,2]
[367485186,1750819832816,-191.59853848,0.00016951,2]
[367485187,1750819832825,-460.0,0.00016951,2]
[367485188,1750819832835,-460.0,0.00016951,2]
[367485189,1750819832845,-460.0,0.00016951,2]
[367485190,1750819832855,-460.0,0.00016951,2]
[367485191,1750819832864,-460.0,0.00016951,2]
[367485192,1750819832873,-460.0,0.00016951,2]
[367485193,1750819832883,-460.0,0.00016951,2]
[367485194,1750819832892,-460.0,0.00016951,2]
[367485195,1750819832901,-460.0,0.00016951,2]
[367485196,1750819832911,-460.0,0.00016951,2]
[367485197,1750819832920,-460.0,0.00016951,2]
[367485198,1750819832929,-460.0,0.00016951,2]
[367485199,1750819832938,-460.0,0.00016951,2]
[367485200,1750819832947,-460.0,0.00016951,2]
[367485201,1750819832957,-899.91,0.00016951,2]
[367485202,1750819832967,-460.0,0.00016951,2]
[367485203,1750819832976,-460.0,0.00016951,2]
[367485204,1750819832985,-460.0,0.00016951,2]
[367485205,1750819832994,-460.0,0.00016951,2]
[367485206,1750819833004,-1860.25,0.00016951,2]
[367485207,1750819833013,-460.0,0.00016951,2]
[367485208,1750819833022,-476.80838209,0.00016951,2]
[367485209,1750819833031,-460.0,0.00016951,2]
[367485210,1750819833040,-460.0,0.00016951,2]
[367485211,1750819833050,-1227.14,0.00016951,2]
[367485212,1750819833059,-460.0,0.00016951,2]
[367485213,1750819833069,-197.23274814,0.00016951,2]
[367485214,1750819833079,-615.49,0.00016951,2]
[367485215,1750819833088,-460.0,0.00016951,2]
[367485216,1750819833098,-460.0,0.00016951,2]
[367485217,1750819833107,-541.36,0.00016951,2]
[367485218,1750819833117,-460.0,0.00016951,2]
[367485219,1750819833126,-460.0,0.00016951,2]
[367485220,1750819833136,-460.0,0.00016951,2]
[367485221,1750819833146,-460.0,0.00016951,2]
[367485222,1750819833156,-460.0,0.00016951,2]
[367485223,1750819833165,-460.0,0.00016951,2]
[367485224,1750819833175,-460.0,0.00016951,2]
[367485225,1750819833186,-460.0,0.00016951,2]
[367485226,1750819833198,-460.0,0.00016951,2]
[367485227,1750819833209,-463.88007666,0.00016951,2]
[367485228,1750819833219,-460.0,0.00016951,2]
[367485229,1750819833228,-460.0,0.00016951,2]
[367485230,1750819833239,-460.0,0.00016951,2]
[367485231,1750819833248,-461.88657365,0.00016951,2]
[367485232,1750819833258,-460.0,0.00016951,2]
[367485233,1750819833267,-460.0,0.00016951,2]
[367485234,1750819833278,-460.0,0.00016951,2]
[367485235,1750819833288,-460.0,0.00016951,2]
[367485236,1750819833300,-460.0,0.00016951,2]
[367485237,1750819833309,-460.0,0.00016951,2]
[367485238,1750819833318,-460.0,0.00016951,2]
[367485239,1750819833327,-460.0,0.00016951,2]
[367485240,1750819833338,-460.0,0.00016951,2]
[367485241,1750819833350,-460.0,0.00016951,2]
[367485242,1750819833361,-460.0,0.00016951,2]
[367485243,1750819833371,-460.0,0.00016951,2]
[367485244,1750819833380,-460.0,0.00016951,2]
[367485245,1750819833390,-460.0,0.00016951,2]
[367485246,1750819833399,-460.0,0.00016951,2]
[367485247,1750819833408,-460.0,0.00016951,2]
[367485248,1750819833417,-460.0,0.00016951,2]
[367485249,1750819833426,-466.90449893,0.00016951,2]
[367485250,1750819833436,-460.0,0.00016951,2]
[367485251,1750819833446,-460.0,0.00016951,2]
[367485252,1750819833455,-460.0,0.00016951,2]
[367485253,1750819833464,-460.0,0.00016951,2]
[367485254,1750819833474,-460.0,0.00016951,2]
[367485255,1750819833484,-460.0,0.00016951,2]
[367485256,1750819833494,-460.0,0.00016951,2]
[367485257,1750819833503,-460.0,0.00016951,2]
[367485258,1750819833513,-460.0,0.00016951,2]
[367485259,1750819833523,-228.33758238,0.00016951,2]
[367485260,1750819833532,-239.58246835,0.00016951,2]
[367485261,1750819833542,-460.0,0.00016951,2]
[367485262,1750819833552,-460.0,0.00016951,2]
[367485263,1750819833561,-598.29847141,0.00016951,2]
[367485264,1750819833571,-460.0,0.00016951,2]
[367485265,1750819833579,-460.0,0.00016951,2]
[367485266,1750819833589,-460.0,0.00016951,2]
[367485267,1750819833598,-460.0,0.00016951,2]
[367485268,1750819833607,-460.0,0.00016951,2]
[367485269,1750819833617,-460.0,0.00016951,2]
[367485270,1750819833627,-460.0,0.00016951,2]
[367485271,1750819833636,-460.0,0.00016951,2]
[367485272,1750819833646,-460.0,0.00016951,2]
[367485273,1750819833656,-460.0,0.00016951,2]
[367485274,1750819833665,-460.0,0.00016951,2]
[367485275,1750819833675,-460.0,0.00016951,2]
[367485276,1750819833684,-460.0,0.00016951,2]
[367485277,1750819833693,-460.0,0.00016951,2]
[367485278,1750819833702,-460.0,0.00016951,2]
[367485279,1750819833711,-460.0,0.00016951,2]
[367485280,1750819833721,-345.81141154,0.00016951,2]
[367485281,1750819833730,-460.0,0.00016951,2]
[367485282,1750819833740,-460.0,0.00016951,2]
[367485283,1750819833749,-460.0,0.00016951,2]
[367485284,1750819833759,-503.06267903,0.00016952,2]
[367485285,1750819833768,-469.54264064,0.00016952,2]
[367485286,1750819833779,-461.69323304,0.00016952,2]
[367485287,1750819833788,-467.98909319,0.00016952,2]
[367485288,1750819833799,-460.0,0.00016952,2]
[367485289,1750819833809,-460.0,0.00016952,2]
[367485290,1750819833818,-460.0,0.00016952,2]
[367485291,1750819833827,-460.0,0.00016952,2]
[367485292,1750819833837,-460.0,0.00016952,2]
[367485293,1750819833846,-425.3174082,0.00016952,2]
[367485294,1750819833856,-460.0,0.00016952,2]
[367485295,1750819833865,-460.0,0.00016952,2]
[367485296,1750819833875,-460.0,0.00016952,2]
[367485297,1750819833885,-460.0,0.00016952,2]
[367485298,1750819833895,-460.0,0.00016952,2]
[367485299,1750819833904,-460.0,0.00016952,2]
[367485300,1750819833912,-460.0,0.00016952,2]
[367485301,1750819833922,-427.98544481,0.00016952,2]
[367485302,1750819833932,-460.0,0.00016952,2]
[367485303,1750819833941,-460.0,0.00016952,2]
[367485304,1750819833951,-489.1788895,0.00016952,2]
[367485305,1750819833960,-460.0,0.00016952,2]
[367485306,1750819833969,-460.0,0.00016952,2]
[367485307,1750819833979,-460.0,0.00016952,2]
[367485308,1750819833988,-460.0,0.00016952,2]
[367485309,1750819833997,-460.0,0.00016952,2]
[367485310,1750819834006,-460.0,0.00016952,2]
[367485311,1750819834016,-460.0,0.00016952,2]
[367485312,1750819834025,-460.0,0.00016952,2]
[367485313,1750819834034,-460.0,0.00016952,2]
[367485314,1750819834043,-460.0,0.00016952,2]
[367485315,1750819834052,-460.0,0.00016952,2]
[367485316,1750819834062,-460.0,0.00016952,2]
[367485317,1750819834071,-460.0,0.00016952,2]
[367485318,1750819834229,-460.0,0.00016952,2]
[367485319,1750819834239,-460.0,0.00016952,2]
[367485320,1750819834249,-460.0,0.00016952,2]
[367485321,1750819834259,-460.0,0.00016952,2]
[367485322,1750819834270,-460.0,0.00016952,2]
[367485323,1750819834280,-460.0,0.00016952,2]
[367485324,1750819834292,-460.0,0.00016952,2]
[367485325,1750819834302,-460.0,0.00016952,2]
[367485326,1750819834312,-460.0,0.00016952,2]
[367485327,1750819834322,-460.0,0.00016952,2]
[367485328,1750819834331,-500.0,0.00016952,2]
[367485329,1750819834341,-500.0,0.00016952,2]
[367485330,1750819834350,-460.0,0.00016952,2]
[367485331,1750819834359,-460.0,0.00016952,2]
[367485332,1750819834369,-460.0,0.00016952,2]
[367485333,1750819834378,-460.0,0.00016952,2]
[367485334,1750819834388,-460.0,0.00016952,2]
[367485335,1750819834397,-460.0,0.00016952,2]
[367485336,1750819834406,-486.60485798,0.00016952,2]
[367485337,1750819834416,-460.0,0.00016952,2]
[367485338,1750819834425,-460.0,0.00016952,2]
[367485339,1750819834435,-460.0,0.00016952,2]
[367485340,1750819834444,-460.0,0.00016952,2]
[367485341,1750819834453,-460.0,0.00016952,2]
[367485342,1750819834463,-460.0,0.00016952,2]
[367485343,1750819834473,-460.0,0.00016952,2]
[367485344,1750819834482,-460.0,0.00016952,2]
[367485345,1750819834491,-394.49016833,0.00016952,2]
[367485346,1750819834500,-460.0,0.00016952,2]
[367485347,1750819834510,-460.0,0.00016952,2]
[367485348,1750819834519,-460.0,0.00016952,2]
[367485349,1750819834528,-460.0,0.00016952,2]
[367485350,1750819834537,-460.0,0.00016952,2]
[367485351,1750819834547,-460.0,0.00016952,2]
[367485352,1750819834557,-460.0,0.00016952,2]
[367485353,1750819834566,-460.0,0.00016952,2]
[367485354,1750819834575,-460.0,0.00016952,2]
[367485355,1750819834584,-500.0,0.00016952,2]
[367485356,1750819834594,-460.0,0.00016952,2]
[367485357,1750819834603,-460.0,0.00016952,2]
[367485358,1750819834612,-460.0,0.00016952,2]
[367485359,1750819834621,-460.0,0.00016952,2]
[367485360,1750819834630,-1181.0,0.00016952,2]
[367485361,1750819834639,-460.0,0.00016952,2]
[367485362,1750819834648,-151.0,0.00016952,2]
[367485363,1750819834657,-546.23,0.00016952,2]
[367485364,1750819834670,-500.0,0.00016952,2]
[367485365,1750819834679,-500.0,0.00016952,2]
[367485366,1750819834688,-460.0,0.00016952,2]
[367485367,1750819834698,-500.0,0.00016952,2]
[367485368,1750819834707,-500.0,0.00016952,2]
[367485369,1750819834717,-460.0,0.00016952,2]
[367485370,1750819834726,-460.0,0.00016952,2]
[367485371,1750819834735,-500.0,0.00016952,2]
[367485372,1750819834745,-211.48300267,0.00016952,2]
[367485373,1750819834754,-500.0,0.00016952,2]
[367485374,1750819834764,-460.0,0.00016952,2]
[367485375,1750819834773,-1196.47,0.00016952,2]
[367485376,1750819834782,-460.0,0.00016952,2]
[367485377,1750819834793,-460.0,0.00016952,2]
[367485378,1750819834802,-460.0,0.00016952,2]
[367485379,1750819834811,-460.0,0.00016952,2]
[367485380,1750819834821,-460.0,0.00016952,2]
[367485381,1750819834830,-460.0,0.00016952,2]
[367485382,1750819834839,-500.0,0.00016952,2]
[367485383,1750819834848,-500.0,0.00016952,2]
[367485384,1750819834857,-500.0,0.00016952,2]
[367485385,1750819834866,-460.0,0.00016952,2]
[367485386,1750819834876,-460.0,0.00016952,2]
[367485387,1750819834885,-460.0,0.00016952,2]
[367485388,1750819834894,-151.0,0.00016952,2]
[367485389,1750819834904,-460.0,0.00016952,2]
[367485390,1750819834913,-460.0,0.00016952,2]
[367485391,1750819834923,-460.0,0.00016952,2]
[367485392,1750819834932,-460.0,0.00016952,2]
[367485393,1750819834942,-542.36,0.00016952,2]
[367485394,1750819834951,-460.0,0.00016952,2]
[367485395,1750819834961,-460.0,0.00016952,2]
[367485396,1750819834970,-460.0,0.00016952,2]
[367485397,1750819834980,-460.0,0.00016952,2]
[367485398,1750819834989,-460.0,0.00016952,2]
[367485399,1750819834998,-460.0,0.00016952,2]
[367485400,1750819835007,-460.0,0.00016952,2]
[367485401,1750819835017,-460.0,0.00016952,2]
[367485402,1750819835026,-460.0,0.00016952,2]
[367485403,1750819835036,-460.0,0.00016952,2]
[367485404,1750819835045,-460.0,0.00016952,2]
[367485405,1750819835055,-464.68563727,0.00016952,2]
[367485406,1750819835064,-463.49973073,0.00016952,2]
[367485407,1750819835074,-3048.66,0.00016952,2]
[367485408,1750819835083,-460.0,0.00016952,2]
[367485409,1750819835093,-460.0,0.00016952,2]